Cogmind - Beta 15 @@@ ROGUE MODE // 2025.07.21 @ 16:45:30 Player: saltine Result: Escaped! Performance ------------- Evolutions (9) 4500 Regions Visited (27) 5400 Robots Destroyed (414) 2070 Value Destroyed (19915) 19915 Prototype IDs (76) 1520 Alien Tech Used (2) 400 Bonus (8787) 8787 TOTAL SCORE: 42592 Bonus ------- High Alert Combat Kills 2087 Follower Combat Kills 1727 Network Hubs Disabled 200 Registered with UFD 300 Met Optimus in HQ 500 Met Imprinter 300 Met Zhirov 300 Built Enhanced Grunts 300 Met R17 at Cetus 500 Met R17 at Research 2000 Scanned by Researcher 500 Win 3000 Friendly Fire -2927 Cogmind --------- Core Integrity 1418/1600 Matter 129/300 Energy 15/600 System Corruption 2% Temperature Cool (0) Movement Core (300) Ox5 Location To Epsilon Eridani Parts ------- > --- POWER (2) -------- (None) > --- PROPULSION (7) --- Myomer Leg Centrium Leg High-density Centrium Leg > --- UTILITY (11) ----- Experimental Cooling System Advanced Energy Well Advanced Signal Interpreter Experimental Targeting Computer Core Analyzer Advanced Transmission Jammer Medium Regenerative Plating A0-MCA's Component Scanner > --- WEAPON (5) ------- Compact Tesla Bomb Launcher > --- INVENTORY (5) ---- Long-range Tractor Beam Peak State ------------ > --- POWER ------------ Light Antimatter Reactor Micro Antimatter Reactor > --- PROPULSION ------- Enhanced Flexi-carbon Leg Myomer Leg Biometal Leg Experimental Myomer Leg High-density Centrium Leg High-density Centrium Leg High-density Centrium Leg > --- UTILITY ---------- Experimental Cooling System Huge Storage Unit Advanced Signal Interpreter Experimental Targeting Computer Core Analyzer SHELL Armor AEGIS Remote Shield > --- WEAPON ----------- Precision Phase Gun Enhanced Hardcell Cannon Enhanced Hardcell Cannon Omega Cannon > --- INVENTORY -------- Light Antimatter Reactor Heavy Antimatter Reactor Myomer Leg Myomer Leg Centrium Leg Centrium Leg Experimental Cooling System Experimental Coolant Injector Advanced Energy Well Advanced Matter Compressor Advanced Sensor Array Advanced Transmission Jammer Advanced Reaction Control System Medium Regenerative Plating Experimental EM Shield Advanced Point Defense System A0-MCA's Component Scanner Advanced Dynamic Insulation System Long-range Tractor Beam Compact HERF Cannon Enhanced Nova Cannon Enhanced Hardcell Cannon Enhanced Hardcell Cannon Compact Tesla Bomb Launcher Compact Tesla Bomb Launcher [Rating: 212] Favorites ----------- Power Angular Momentum Engine Engine Angular Momentum Engine Power Core Nuclear Core Reactor Particle Reactor Propulsion Medium Treads Treads Medium Treads Leg Myomer Leg Utility Huge Storage Unit Device Cooling System Storage Huge Storage Unit Processor Core Analyzer Hackware Hacking Suite Protection Improved Heavy Armor Plating Weapon Enhanced Autogun Energy Gun Precision Phase Gun Energy Cannon Heavy Plasma Cannon Ballistic Gun Enhanced Autogun Ballistic Cannon Enhanced Gauss Cannon Launcher Improved Proton Missile Launcher Special Weapon Plasma Cutter Build | -11 -10 -10 -9 -9 -8 -8 -8 -8 -6 -6 -6 -6 -5 -5 -5 -5 -5 -5 -4 -4 -4 -4 -3 -3 -3 -2 -1 ------- Run | Yrd Mat Min Mat Min Mat Sto Rec Scr Fac Low Low Zio Pro Fac Ext Cet Arc Hub Fac Upp Upp Zhi Pro Res Tes Res Acc Slots Evolved 18 | . . . 2 . 2 . . . 4 . . . . 2 . . . . 2 . . . . 2 . 2 2 Power 1 | . . . . . . . . . . . . . . 1 . . . . . . . . . . . . . Propulsion 5 | . . . . . 1 . . . 1 . . . . . . . . . 2 . . . . 1 . . . Utility 9 | . . . . . 1 . . . 2 . . . . 1 . . . . . . . . . 1 . 2 2 Weapon 3 | . . . 2 . . . . . 1 . . . . . . . . . . . . . . . . . . Parts Attached 228 | 7 8 6 20 2 14 13 1 8 11 1 1 3 2 2 9 13 10 14 8 7 . . 6 20 26 14 2 Power 24 | 1 1 1 2 . 1 1 . 1 1 . . . . . 1 1 2 1 2 . . . 1 3 3 1 . Engine 8 | 1 1 1 2 . . 1 . . 1 . . . . . 1 . . . . . . . . . . . . Core 3 | . . . . . 1 . . 1 . . . . . . . . . . 1 . . . . . . . . Reactor 13 | . . . . . . . . . . . . . . . . 1 2 1 1 . . . 1 3 3 1 . Propulsion 54 | 2 . 1 6 . 2 3 1 2 2 . . 1 1 . 3 2 1 6 2 1 . . 2 5 6 5 . Treads 30 | 2 . 1 6 . 2 3 1 2 2 . . 1 1 . 3 2 1 2 . . . . . 1 . . . Leg 24 | . . . . . . . . . . . . . . . . . . 4 2 1 . . 2 4 6 5 . Wheel . | . . . . . . . . . . . . . . . . . . . . . . . . . . . . Hover . | . . . . . . . . . . . . . . . . . . . . . . . . . . . . Flight . | . . . . . . . . . . . . . . . . . . . . . . . . . . . . Utility 75 | 2 3 3 2 2 3 1 . 3 7 1 1 2 . 2 4 4 7 3 1 4 . . 1 6 10 2 1 Device 42 | 1 2 2 . . . . . 2 3 . 1 2 . 2 2 2 5 3 . 4 . . . 2 8 1 . Storage 6 | 1 1 1 1 . . . . . . . . . . . . . 1 . . . . . . 1 . . . Processor 5 | . . . . . . . . . 1 . . . . . . . 1 . . . . . . 1 1 . 1 Hackware 5 | . . . . . 1 . . . 1 . . . . . . . . . 1 . . . . 2 . . . Protection 17 | . . . 1 2 2 1 . 1 2 1 . . . . 2 2 . . . . . . 1 . 1 1 . Artifact . | . . . . . . . . . . . . . . . . . . . . . . . . . . . . Weapon 75 | 2 4 1 10 . 8 8 . 2 1 . . . 1 . 1 6 . 4 3 2 . . 2 6 7 6 1 Energy Gun 9 | 2 . . 1 . . . . . . . . . . . . . . . . . . . . 3 3 . . Energy Cannon 9 | . 3 1 . . . . . . 1 . . . . . . 1 . . . . . . . . 1 2 . Ballistic Gun 32 | . . . 8 . 6 5 . 2 . . . . 1 . . 3 . 3 2 . . . 2 . . . . Ballistic Cannon 11 | . . . . . 1 . . . . . . . . . . . . . 1 2 . . . 2 1 4 . Launcher 10 | . 1 . 1 . . 2 . . . . . . . . . 2 . 1 . . . . . . 2 . 1 Special Weapon 4 | . . . . . 1 1 . . . . . . . . 1 . . . . . . . . 1 . . . Impact Weapon . | . . . . . . . . . . . . . . . . . . . . . . . . . . . . Slashing Weapon . | . . . . . . . . . . . . . . . . . . . . . . . . . . . . Piercing Weapon . | . . . . . . . . . . . . . . . . . . . . . . . . . . . . Special Melee Weapon . | . . . . . . . . . . . . . . . . . . . . . . . . . . . . Unidentified Prototypes 27 | . . . . . 1 2 . . 1 . . 1 . . . 3 1 5 1 1 . 1 . 3 6 1 . Corrupted Parts 21 | . . . . . . . . . . . . . . . . 4 . 9 . . . . . . 7 1 . System Corruption 123 | . . . . . . . . . . . . . . . . 32 . 42 . . . . . . 40 9 . Parts Lost 56 | . 1 2 . 1 . . . . 1 . . . 1 . 2 . . . 5 1 . . 5 2 9 22 4 Power 7 | . 1 1 . . . . . . . . . . . . . . . . 1 . . . 1 . . 3 . Propulsion 22 | . . . . . . . . . . . . . . . 2 . . . . . . . 3 2 6 7 2 Utility 6 | . . . . 1 . . . . . . . . . . . . . . . . . . . . . 4 1 Weapon 21 | . . 1 . . . . . . 1 . . . 1 . . . . . 4 1 . . 1 . 3 8 1 Highest Loss Streak 8 | . 1 1 . 1 . . . . 1 . . . 1 . 1 . . . 2 1 . . 3 1 5 8 4 To Critical Strikes 3 | . . . . . . . . . . . . . . . 2 . . . . . . . . . . 1 . Average Backups 22 | 3 13 16 24 24 24 24 24 22 21 22 22 21 21 21 21 21 22 22 24 24 25 25 23 24 23 21 5 Power . | . 1 . . 1 1 1 1 . 1 1 1 1 1 1 . . 1 1 1 1 1 1 2 2 1 1 . Propulsion 4 | 1 4 4 5 6 5 5 6 3 3 4 4 4 4 4 3 4 3 3 2 3 3 3 . . 2 2 . Utility 9 | . 2 3 5 7 7 8 9 8 8 8 9 8 9 9 10 9 11 11 14 14 15 14 14 14 13 12 3 Weapon 6 | 1 5 7 11 9 9 7 7 6 6 5 5 5 4 4 5 4 5 5 4 5 5 4 4 5 4 4 1 Tool/Special . | . . . . . . . . . . . . . . . . . . . . . . . . . . . . Unused Backups 71 | . 4 1 14 . 9 3 . 6 6 1 . 1 . 2 2 1 . 3 4 2 . 1 . . 7 1 3 Power 6 | . . 1 1 . . . . 1 1 . . . . . . . . 1 . . . . . . 1 . . Propulsion 22 | . 2 . 7 . 4 . . 1 1 . . . . . 2 . . 1 3 . . . . . 1 . . Utility 20 | . . . 2 . 1 . . 1 1 . . 1 . 2 . 1 . 1 1 2 . 1 . . 5 . 1 Weapon 22 | . 2 . 4 . 4 3 . 2 3 1 . . . . . . . . . . . . . . . 1 2 Tool/Special 1 | . . . . . . . . 1 . . . . . . . . . . . . . . . . . . . Average Slot Usage (%) 96 | . 98 100 99 100 99 99 100 99 92 99 93 92 93 88 93 99 99 95 98 99 100 100 97 91 97 84 50 Engine 6 | . 13 14 11 11 4 3 9 8 5 6 6 6 6 5 10 8 1 . . . . . . . . . . Reactor 2 | . . . . . . . . . . . . . . . . 1 9 11 8 5 5 5 9 8 9 7 . Treads 21 | . 27 28 22 22 26 27 27 26 26 26 26 26 26 23 22 23 23 17 . . . . . 1 . . . Leg 4 | . . . . . . . . . . . . . . . . . . 1 30 31 31 31 30 27 31 29 20 Device 9 | . 13 14 3 3 8 9 9 14 12 12 6 5 6 11 11 16 11 11 9 9 10 10 9 4 10 7 11 Storage 7 | . 14 14 11 11 9 9 9 9 6 6 6 6 6 5 5 5 5 5 5 5 5 5 5 4 4 4 . Processor 4 | . . . . . . . . . . 6 6 6 6 5 5 5 10 11 10 10 10 10 10 13 12 13 16 Protection 5 | . . . 7 7 8 8 9 3 5 6 6 6 6 5 5 5 3 5 5 5 5 5 5 5 4 3 . Energy Gun 1 | . 5 . . . . . . . . . . . . . . . . . . . . . . 9 15 2 . Energy Cannon 3 | . 20 27 1 . . . . . . . . . 1 3 . 7 11 5 3 5 4 5 5 . . 2 . Ballistic Gun 25 | . . . 40 44 35 35 36 36 32 33 33 33 31 24 27 11 17 22 21 5 5 4 7 4 1 . . Ballistic Cannon 1 | . . . . . . . . . . . . . . . . . . . . 14 15 15 10 3 3 9 . Peak Build Rating 212 | 7 10 10 29 29 42 45 43 46 69 70 72 82 75 80 86 111 114 136 146 139 134 135 135 162 183 212 122 Average Rating 69 | 5 8 9 25 28 37 42 43 44 65 64 70 70 72 76 79 94 111 118 135 129 129 129 126 140 162 195 94 On Entrance 79 | . 7 10 10 29 29 41 43 43 45 66 70 70 75 72 75 86 111 113 120 140 134 129 135 129 160 181 111 Naked Turns . | . . . . . . . . . . . . . . . . . . . . . . . . . . . . Heaviest Build 202 | 13 31 91 105 107 114 110 105 107 133 126 126 144 135 137 144 162 170 164 163 172 163 165 170 166 164 202 18 Greatest Support 204 | 40 40 40 43 40 60 68 68 72 108 108 108 114 116 116 116 118 118 160 172 172 169 169 169 183 202 204 147 Greatest Overweight (x) 55 | . 1 2 2 2 5 1 1 2 1 1 1 1 1 1 1 1 55 2 . 1 . . 1 1 1 41 5 Average Overweight (x) 1 | . . 1 2 2 1 1 1 1 1 1 1 1 1 1 1 1 7 1 . . . . . . . . . Largest Inventory Capacity 25 | 8 15 25 25 25 25 25 25 25 25 25 25 25 25 25 25 25 25 25 25 25 25 25 25 25 25 25 25 Average Capacity 24 | 7 14 24 25 25 25 25 25 25 25 25 25 25 25 25 25 25 25 25 25 25 25 25 25 25 25 25 5 Most Carried 25 | 5 15 18 25 25 25 25 25 25 25 25 25 25 25 25 25 25 25 25 25 25 25 25 25 25 25 25 12 Average Carried 23 | 4 13 16 24 24 24 24 25 24 24 24 24 24 24 24 24 24 25 24 24 24 25 25 23 24 24 21 4 Final Capacity 25 | 8 15 25 25 25 25 25 25 25 25 25 25 25 25 25 25 25 25 25 25 25 25 25 25 25 25 25 5 Final Carried 25 | 5 15 18 25 25 25 25 25 25 25 25 25 25 25 25 25 25 25 24 25 25 25 25 23 25 21 13 1 Class Distribution -------------------- 24% | Gunner 21% | Tank 17% | Commander-Gunner 14% | Scavenger-Gunner 13% | Commander-Tank 7% | Mutant Dominant Class ---------------- Mutant | -10/Materials Mutant | -10/Mines Tank | -9/Materials Tank | -9/Mines Tank | -8/Materials Tank | -8/Storage Commander-Tank | -8/Recycling Commander-Tank | -8/Scraptown Tank | -6/Factory Gunner | -6/Lower Caves Gunner | -6/Lower Caves Gunner | -6/Zion Gunner | -5/Proximity Caves Gunner | -5/Factory Tank | -5/Extension Commander-Gunner | -5/Cetus Commander-Gunner | -5/Archives Scavenger-Gunner | -5/Hub_04(d) Scavenger-Gunner | -4/Factory Scavenger-Gunner | -4/Upper Caves Scavenger-Gunner | -4/Upper Caves Scavenger-Gunner | -4/Zhirov Scavenger-Gunner | -3/Proximity Caves Scavenger-Gunner | -3/Research Scavenger-Gunner | -3/Testing Scavenger-Gunner | -2/Research Scavenger-Mutant | -1/Access Resources | -11 -10 -10 -9 -9 -8 -8 -8 -8 -6 -6 -6 -6 -5 -5 -5 -5 -5 -5 -4 -4 -4 -4 -3 -3 -3 -2 -1 ----------- Run | Yrd Mat Min Mat Min Mat Sto Rec Scr Fac Low Low Zio Pro Fac Ext Cet Arc Hub Fac Upp Upp Zhi Pro Res Tes Res Acc Matter Collected 18842 | 270 150 135 908 100 1410 1344 106 220 989 387 160 40 881 433 2244 366 364 859 836 401 192 . 410 1048 1852 2608 129 Remotely 3838 | . . . . . . . . . 393 . . . . 201 876 82 . 444 474 252 . . . . 283 833 . Salvage Created 21447 | 188 797 264 1292 152 1708 1587 159 . 959 307 188 . 718 444 1595 483 320 824 1452 420 90 . 236 444 2316 4486 18 Parts 1056 | 10 44 17 101 8 95 85 9 . 38 16 6 . 20 18 79 33 30 57 71 16 1 . 13 10 84 195 . Haulers Intercepted 22 | . 2 . 6 . 4 2 . . . . . . . . . . . . 1 1 . . . 2 . 4 . Recyclers Shooed 6 | . 1 . . . . 3 1 . . . . . . . 1 . . . . . . . . . . . . Parts Field Recycled . | . . . . . . . . . . . . . . . . . . . . . . . . . . . . Retrieved Matter . | . . . . . . . . . . . . . . . . . . . . . . . . . . . . Parts Self-Destructed 76 | . . . . . . . . . . 24 10 3 20 . . . . . . 9 . . 10 . . . . Prevented 4 | . . . . . . . . . . 3 . . . . . . . . . . . . 1 . . . . Kills | -11 -10 -10 -9 -9 -8 -8 -8 -8 -6 -6 -6 -6 -5 -5 -5 -5 -5 -5 -4 -4 -4 -4 -3 -3 -3 -2 -1 ------- Run | Yrd Mat Min Mat Min Mat Sto Rec Scr Fac Low Low Zio Pro Fac Ext Cet Arc Hub Fac Upp Upp Zhi Pro Res Tes Res Acc Combat Hostiles Destroyed 337 | . 16 9 26 4 34 27 3 . 19 8 3 . 9 9 20 4 . 10 17 14 4 . 8 4 35 53 1 Guns 204 | . 5 . 22 4 34 27 3 . 19 8 3 . 8 9 20 . . 10 9 . . . . 2 21 . . Cannons 61 | . 7 6 . . . . . . . . . . 1 . . . . . . 3 1 . 7 2 10 24 . AOE 44 | . 4 3 4 . . . . . . . . . . . . 1 . . 3 11 3 . . . 2 12 1 Classes Destroyed 25 | 2 4 . 4 . 2 3 . . 2 . . . 3 . . 1 . . . . . . . . 1 3 . Worker 9 | . . . 2 . 1 1 . . . . . . . . . . . . 1 . . . . . . 4 . Builder 7 | . . . 2 . . . . . . . . . . . . . . 1 . . . . . . 1 3 . Tunneler 7 | 4 2 . . . . . . . . . . . . . . . . . . . . . . . . 1 . Hauler 22 | . 2 . 6 . 4 2 . . . . . . . . . . . . 1 1 . . . 2 . 4 . Recycler 5 | 1 1 . . . . 1 . . . . . . . . 2 . . . . . . . . . . . . Minesweeper 1 | . . . . . . . . . . . . . 1 . . . . . . . . . . . . . . Mechanic 2 | . . . 1 . . 1 . . . . . . . . . . . . . . . . . . . . . Operator 13 | . 1 . 1 . . 1 . . . . . . . . 1 . 8 . 1 . . . . . . . . Drone 1 | . . . . . . . . . . . . . 1 . . . . . . . . . . . . . . Watcher 5 | . . . . . . . . . . . . . . . . . . . . . . . . . . 4 1 Swarmer 66 | . 3 6 11 1 8 . . . 4 5 . . . 3 4 . . . . 9 . . 8 1 2 1 . Grunt 126 | . 13 3 6 3 17 10 . . 6 3 3 . 5 4 4 . . 1 3 5 3 . . 1 21 15 . Brawler 2 | . . . . . . 2 . . . . . . . . . . . . . . . . . . . . . Duelist 4 | . . . . . . 3 . . . . . . . . . . . . . . 1 . . . . . . Protector 1 | . . . . . . 1 . . . . . . . . . . . . . . . . . . . . . Researcher 1 | . . . . . . . . . . . . . . . . . . . . . . . . . 1 . . Sentry 49 | . . . 9 . 7 11 3 . 5 . . . 1 1 6 . . . . . . . . 1 . 5 . Specialist 11 | . . . . . . . . . 2 . . . . . . . . 3 2 . . . . . . 4 . Hunter 31 | . . . . . 1 . . . . . . . 1 1 3 . . . 8 . . . . . 3 14 . Programmer 30 | . . . . . . . . . 2 . . . . . 1 . . 2 4 . . . . . 9 11 1 Heavy 2 | . . . . . 1 . . . . . . . . . . . . 1 . . . . . . . . . Q-Series 2 | . . . . . . . . . . . . . . . . . . . . . . . . . . 2 . Behemoth 4 | . . . . . . . . . . . . . 1 . 2 . . . . . . . . 1 . . . Cetus Guard 4 | . . . . . . . . . . . . . . . . 4 . . . . . . . . . . . Lightning 3 | . . . . . . . . . . . . . . . . . . 3 . . . . . . . . . Investigator 1 | . . . . . . . . . . . . . . . . . . . . . . . . . 1 . . Striker 1 | . . . . . . . . . . . . . . . . . . . . . . . . . . 1 . Scrapoid 1 | . . . . . . . . . . . . . . . . 1 . . . . . . . . . . . Thug 1 | . . 1 . . . . . . . . . . . . . . . . . . . . . . . . . Guerrilla 1 | . . . . . . . . . . . . . . . 1 . . . . . . . . . . . . Best Kill Streak 19 | 3 6 3 5 3 4 8 1 . 6 5 3 . 3 4 4 3 1 4 5 10 4 . 4 1 6 19 2 Combat Bots Only 16 | . 6 3 4 3 4 8 1 . 6 5 3 . 3 4 4 3 . 4 5 10 4 . 4 1 5 16 1 Max Kills in Single Turn 4 | 1 3 3 2 2 3 2 1 . 1 2 1 . 1 2 2 1 1 1 2 4 2 . 1 1 2 3 2 Gunslinging 2 | . . . 1 1 2 1 . . . 1 . . . 1 . . . . . . . . . . . . . Exploded 4 | . 3 3 2 . . . . . . . . . . . . 1 . . 2 4 2 . . . 2 3 1 Melee . | . . . . . . . . . . . . . . . . . . . . . . . . . . . . Uniques/NPCs Destroyed 1 | . . . . . . . . . . . . . . . . 1 . . . . . . . . . . . A7 (-5/Cetus) Combat | -11 -10 -10 -9 -9 -8 -8 -8 -8 -6 -6 -6 -6 -5 -5 -5 -5 -5 -5 -4 -4 -4 -4 -3 -3 -3 -2 -1 -------- Run | Yrd Mat Min Mat Min Mat Sto Rec Scr Fac Low Low Zio Pro Fac Ext Cet Arc Hub Fac Upp Upp Zhi Pro Res Tes Res Acc Hostile Shots Fired 2020 | . 57 29 98 12 109 77 9 . 64 24 24 . 55 23 84 17 . 46 330 58 17 . 47 58 244 469 69 Missed 714 | . 12 9 25 2 34 21 2 . 29 10 6 . 18 2 21 7 . 11 149 27 7 . 7 21 83 186 25 Intercepted 28 | . . . . . . . . . . . . . . . . . . . . . . . . . . 28 . Hits 1306 | . 45 20 73 10 75 56 7 . 35 14 18 . 37 21 63 10 . 35 181 31 10 . 40 37 161 283 44 Melee 8 | . . . . . . 8 . . . . . . . . . . . . . . . . . . . . . Projectile 1298 | . 45 20 73 10 75 48 7 . 35 14 18 . 37 21 63 10 . 35 181 31 10 . 40 37 161 283 44 AOE 24 | . . . . . . . . . . . . . . . . . . . . . . . . . 3 21 . Critical Strikes 62 | . . . 2 . 2 3 . . . 1 . . 1 1 6 3 . 2 5 3 . . . 1 13 17 2 Part Disruptions 6 | . . . . . . . . . . . . . . . . . . . . . . . . . 2 4 . Damage Taken 23949 | 16 535 223 835 141 1106 1052 92 . 321 206 259 . 876 348 1039 218 59 812 2133 556 177 . 811 822 2673 7162 1477 Core 1475 | 16 85 44 163 . 64 78 . . 28 34 . . . 12 33 . . 43 100 36 . . . 70 115 372 182 Absorbed by Shields 1344 | . . . . . . . 13 . 124 28 . . . 60 401 87 . . . 16 . . . . 133 482 . Ignored by Resistances 1555 | . . . . . . . . . . . . . . . . . . 175 686 . . . . . 675 19 . Regen/Repaired (Parts) 3603 | . 192 . . . 526 346 . . . . . . . 303 . 6 . 109 395 81 28 . 67 235 207 1108 . Core Remaining (%) 77 | 93 . 42 . 59 . . . 74 . . . . 92 . . . . 91 . . . . 88 . 77 74 88 Volleys Fired 900 | 12 43 27 46 5 94 68 6 . 39 13 6 . 33 38 56 23 16 30 58 14 4 . 9 31 112 108 9 Largest 5 | 2 2 2 4 4 4 4 4 . 5 5 5 . 5 5 5 3 3 5 5 5 4 . 5 5 5 4 2 Hottest 424 | 80 120 120 92 92 100 100 100 . 115 115 115 . 190 190 190 160 105 230 230 265 175 . 265 371 424 336 101 Shots Fired 2869 | 24 85 52 175 20 322 253 24 . 191 65 30 . 156 106 276 46 45 127 154 41 10 . 39 76 309 232 11 Gun 2218 | 24 24 . 172 20 304 248 24 . 190 65 30 . 151 77 274 23 45 121 123 9 2 . 8 48 229 7 . Cannon 545 | . 60 51 . . 8 2 . . 1 . . . 5 29 1 16 . 6 16 29 6 . 31 27 71 186 . Launcher 93 | . 1 1 3 . . 3 . . . . . . . . . 6 . . 15 3 2 . . . 9 39 11 Special 13 | . . . . . 10 . . . . . . . . . 1 1 . . . . . . . 1 . . . Kinetic 2250 | . . . 172 20 312 250 24 . 190 65 30 . 151 77 274 23 45 121 123 27 8 . 30 49 113 146 . Thermal 464 | . 60 51 . . 10 . . . 1 . . . 5 29 1 9 . 6 16 11 . . 9 26 186 44 . Explosive 19 | . 1 1 3 . . 3 . . . . . . . . . . . . . 3 2 . . . . . 6 Electromagnetic 133 | 24 24 . . . . . . . . . . . . . . 13 . . 15 . . . . . 10 42 5 Robot Hit Streak 42 | 5 9 12 19 15 42 23 13 . 13 6 7 . 27 15 19 18 8 18 8 3 7 . 3 7 23 22 6 Robot Miss Streak 11 | 4 4 3 3 1 3 6 1 . 4 3 1 . 6 3 6 3 4 4 11 3 2 . 3 3 3 4 1 Penetration Max 1 | . . . . . . . . . . . . . . . . . 1 1 1 . . . . 1 1 . . Secondary Targets 39 | . 1 . 3 2 6 5 . . 1 4 . . 2 1 3 . . 3 5 . . . . . 3 . . Max Gunslinging Chain 2 | . 1 . 1 1 2 1 . . 1 1 . . 1 1 1 . . 1 1 . . . . . 1 . . Shots Hit Robots 1692 | 12 52 32 102 16 203 153 17 . 106 35 25 . 113 49 169 31 22 75 79 16 5 . 13 42 179 139 7 Core Hits 854 | 6 28 14 51 5 73 66 3 . 45 19 10 . 31 24 82 17 16 25 43 47 24 . 9 17 85 105 9 Critical Kills 14 | . . . . . . 1 . . . . . . . . . 1 5 5 1 . . . . . 1 . . Critical Parts Destroyed 27 | . . . 2 1 . 2 . . . 1 . . 2 . . 1 3 7 5 1 . . . 1 1 . . Critical Strikes 71 | 1 . . 2 1 1 3 . . . 1 . . 2 . . 2 8 12 6 3 . . 2 4 13 10 . Burn 9 | . . . . . . . . . . . . . . . . . . . . . . . . 2 6 1 . Destroy 42 | . . . 2 1 1 3 . . . 1 . . 2 . . 2 8 12 6 1 . . . 1 2 . . Blast 19 | . . . . . . . . . . . . . . . . . . . . 2 . . 2 1 5 9 . Corrupt 1 | 1 . . . . . . . . . . . . . . . . . . . . . . . . . . . Melee Attacks . | . . . . . . . . . . . . . . . . . . . . . . . . . . . . Impact . | . . . . . . . . . . . . . . . . . . . . . . . . . . . . Slashing . | . . . . . . . . . . . . . . . . . . . . . . . . . . . . Piercing . | . . . . . . . . . . . . . . . . . . . . . . . . . . . . Sneak Attacks . | . . . . . . . . . . . . . . . . . . . . . . . . . . . . Combat Hostiles . | . . . . . . . . . . . . . . . . . . . . . . . . . . . . Follow-up Attacks . | . . . . . . . . . . . . . . . . . . . . . . . . . . . . Damage Inflicted 50593 | 222 1156 689 1979 259 3590 3004 340 . 1942 629 480 . 2188 871 3248 1397 793 2223 2892 1661 810 . 473 1230 6965 11030 522 Guns 28862 | 170 201 . 1646 254 3432 2963 320 . 1915 629 480 . 1977 775 3207 377 793 2161 1732 97 . . 66 811 4703 153 . Cannons 11122 | . 702 549 . . . . . . . . . . 94 96 32 336 . 62 . 402 136 . 407 419 2001 5886 . Explosions 9949 | 52 213 119 253 . . . . . . . . . . . . 684 . . 1132 1162 674 . . . 237 4901 522 Melee . | . . . . . . . . . . . . . . . . . . . . . . . . . . . . Ramming 636 | . 40 21 80 5 134 41 20 . 27 . . . 117 . 9 . . . 28 . . . . . 24 90 . Kinetic 32003 | . . . 1646 254 3432 2963 320 . 1915 629 480 . 1977 775 3207 377 793 2161 1732 467 136 . 379 860 2710 4790 . Thermal 8536 | 52 771 549 . . 24 . . . . . . . 94 96 32 322 . 62 115 32 . . 94 370 3994 1929 . Explosive 2766 | . 144 119 253 . . . . . . . . . . . . . . . . 1162 674 . . . . . 414 Electromagnetic 6652 | 170 201 . . . . . . . . . . . . . . 698 . . 1017 . . . . . 237 4221 108 Impact . | . . . . . . . . . . . . . . . . . . . . . . . . . . . . Slashing . | . . . . . . . . . . . . . . . . . . . . . . . . . . . . Piercing . | . . . . . . . . . . . . . . . . . . . . . . . . . . . . Highest Corruption 44 | . . . . . . . . . . . . . . . . 32 32 44 1 1 . . . . 44 32 2 Average Corruption 14 | . . . . . . . . . . . . . . . . 23 16 11 1 1 . . . . 20 7 2 Corruption Purged 33 | . . . . . . . . . . . . . . . . . 32 . . 1 . . . . . . . Corruption Blocked . | . . . . . . . . . . . . . . . . . . . . . . . . . . . . Effects 166 | . . . . . . . . . . . . . . . . 15 26 21 4 2 . . . . 79 15 4 Message Errors 40 | . . . . . . . . . . . . . . . . 5 7 4 1 1 . . . . 17 5 . Matter Fused 38 | . . . . . . . . . . . . . . . . 1 5 6 1 1 . . . . 19 3 2 Heat Flow Errors 9 | . . . . . . . . . . . . . . . . 2 . 2 . . . . . . 5 . . Energy Discharges 18 | . . . . . . . . . . . . . . . . 2 6 2 1 . . . . . 6 1 . Parts Rejected 1 | . . . . . . . . . . . . . . . . . . . . . . . . . . 1 . Parts Fused 4 | . . . . . . . . . . . . . . . . . . 1 1 . . . . . 2 . . Data Loss (minor) 16 | . . . . . . . . . . . . . . . . 3 3 . . . . . . . 8 1 1 Data Loss (major) 4 | . . . . . . . . . . . . . . . . . 1 . . . . . . . 2 . 1 Misfires 9 | . . . . . . . . . . . . . . . . 2 . 1 . . . . . . 5 1 . Alerts 2 | . . . . . . . . . . . . . . . . . 1 1 . . . . . . . . . Misdirections 1 | . . . . . . . . . . . . . . . . . . . . . . . . . . 1 . Weapon Failures 24 | . . . . . . . . . . . . . . . . . 3 4 . . . . . . 15 2 . Overload Shots . | . . . . . . . . . . . . . . . . . . . . . . . . . . . . Overflow Damage 643 | 4 10 . 2 . . 3 . . 7 . . . 10 . . . . 22 22 10 26 . 5 . 88 413 21 Projectiles 373 | . 10 . . . . . . . . . . . . . . . . 22 . . 26 . 5 . 88 222 . Explosions 223 | 4 . . 2 . . . . . . . . . . . . . . . 19 10 . . . . . 167 21 Melee 47 | . . . . . . 3 . . 7 . . . 10 . . . . . 3 . . . . . . 24 . Knockbacks 55 | . . . . . 1 . . . . . . . 1 . . . . . . . 1 . 3 . 22 27 . Impact 3 | . . . . . 1 . . . . . . . 1 . . . . . . . . . . . . 1 . Kinetic 46 | . . . . . . . . . . . . . . . . . . . . . 1 . 2 . 19 24 . Secondary 6 | . . . . . . . . . . . . . . . . . . . . . . . 1 . 3 2 . Self-Inflicted Damage 528 | 17 29 . . . . 2 . . . . . . . . . 12 . . 24 . . . . . 25 376 43 Shots 26 | 1 1 . . . . 1 . . . . . . . . . 1 . . 2 . . . . . 2 17 1 Rammed 71 | . 9 8 15 2 11 5 6 . 1 . . . 12 . 2 . . . . . . . . . . . . Targets Rammed 85 | . 10 8 18 2 11 7 6 . 1 . . . 15 . 2 . . . 1 . . . . . 2 2 . Kicked 5 | . . . . . . . . . . . . . . . . . . . 1 . . . . . 2 2 . Crushed 9 | . 1 . 3 . . 2 . . . . . . 3 . . . . . . . . . . . . . . Highest Temperature 359 | 90 258 322 290 130 211 353 72 . 246 244 195 . 346 281 313 321 8 359 78 259 21 . 51 306 221 327 . Average Temperature 87 | 35 81 114 69 56 68 98 41 . 83 95 101 . 110 113 98 115 6 102 28 104 14 . 18 76 104 73 . Received Heat Transfer 3279 | . 255 81 270 48 396 360 23 . 68 59 87 . 180 65 160 17 24 27 33 118 21 . 9 45 639 294 . Effects 4 | . 1 . . . . . . . . . . . 1 . . 1 . . . . . . . 1 . . . Shutdowns 1 | . . . . . . . . . . . . . . . . . . . . . . . . 1 . . . Energy Bleed 2 | . 1 . . . . . . . . . . . 1 . . . . . . . . . . . . . . Interference 1 | . . . . . . . . . . . . . . . . 1 . . . . . . . . . . . Siege Activations 1 | . . . . . . . . . . . . . . . . . . 1 . . . . . . . . . Total Turns 9 | . . . . . . . . . . . . . . . . . . 9 . . . . . . . . . Longest Duration 9 | . . . . . . . . . . . . . . . . . . 9 . . . . . . . . . Martial Activations . | . . . . . . . . . . . . . . . . . . . . . . . . . . . . Shielding Activations . | . . . . . . . . . . . . . . . . . . . . . . . . . . . . Robots Disrupted . | . . . . . . . . . . . . . . . . . . . . . . . . . . . . Combat Hostiles . | . . . . . . . . . . . . . . . . . . . . . . . . . . . . Robots Corrupted 32 | . . . . . . . . . . . . . 2 . . 3 . . 6 . . . 1 . 1 19 . Combat Hostiles 29 | . . . . . . . . . . . . . 2 . . 3 . . 5 . . . 1 . 1 17 . Parts Fried 50 | . . . . . . . . . . . . . . . . 3 . . 10 . . . 1 . 1 35 . Impact Corruptions 8 | . . . . . . 1 . . 1 . . . 2 . . . . . 1 . . . 1 . 1 1 . Robots Melted 1 | . . . . . . . . . . . . . . . . . . . . . . . . . 1 . . Combat Hostiles 1 | . . . . . . . . . . . . . . . . . . . . . . . . . 1 . . Parts Melted 24 | . 2 2 . . . . . . . . . . . . . . . . . . . . 2 1 16 1 . Heat Transferred 11472 | 100 1530 1147 . . 50 . . . . . . . 150 150 50 225 . 100 100 50 . . 150 629 5518 1523 . Parts Sabotaged . | . . . . . . . . . . . . . . . . . . . . . . . . . . . . Parts Stolen . | . . . . . . . . . . . . . . . . . . . . . . . . . . . . Parts Stripped . | . . . . . . . . . . . . . . . . . . . . . . . . . . . . Power Chain Reactions 9 | 1 1 . . . . . . . . . . . . . . 1 . . 2 . . . . . 1 3 . Alert | -11 -10 -10 -9 -9 -8 -8 -8 -8 -6 -6 -6 -6 -5 -5 -5 -5 -5 -5 -4 -4 -4 -4 -3 -3 -3 -2 -1 ------- Run | Yrd Mat Min Mat Min Mat Sto Rec Scr Fac Low Low Zio Pro Fac Ext Cet Arc Hub Fac Upp Upp Zhi Pro Res Tes Res Acc Maximum Alert Level 4 | . . . 1 . 1 1 . . 1 . . . . 1 2 2 1 1 2 . . . . . 2 4 3 Low Security (%) 73 | 100 100 100 63 100 70 73 100 . 89 . . . . 57 68 . 92 19 40 . . . . 100 54 17 . Level 1 20 | . . . 36 . 29 26 . . 10 . . . . 42 22 36 7 80 9 . . . . . 41 40 . Level 2 4 | . . . . . . . . . . . . . . . 9 63 . . 50 . . . . . 4 21 . Level 3 1 | . . . . . . . . . . . . . . . . . . . . . . . . . . 10 100 Level 4 . | . . . . . . . . . . . . . . . . . . . . . . . . . . 9 . Level 5 . | . . . . . . . . . . . . . . . . . . . . . . . . . . . . High Security . | . . . . . . . . . . . . . . . . . . . . . . . . . . . . Max Security . | . . . . . . . . . . . . . . . . . . . . . . . . . . . . Peak Influence 1478 | 10 146 96 288 110 334 256 160 . 347 . . . . 256 695 500 273 345 484 . . . . 77 512 1478 1074 Initial 852 | . . 16 . 100 31 138 21 . . . . . . 203 53 386 143 . 142 . . . . . . 285 852 Average 132 | 1 39 12 130 34 125 143 53 . 58 . . . . 187 152 424 36 253 308 . . . . 12 199 489 911 Influence Increases 13979 | 25 484 249 861 295 1023 872 456 . 888 190 70 . 205 467 1302 386 312 955 684 320 105 . 210 256 1193 1849 322 Destroy 0b10 Robot/C 7640 | . 320 200 520 200 680 540 100 . 560 160 60 . 160 180 580 160 80 360 340 280 80 . 160 80 760 1060 20 Destroy 0b10 Robot/NC 425 | 25 30 . 60 . 25 35 . . 10 . . . 15 . 30 10 40 20 15 5 . . . 10 10 80 5 Destroy Leader 1564 | . 84 40 152 30 168 154 . . 142 30 10 . 30 40 76 . . 114 82 20 10 . 20 24 90 236 12 Allied During Kill 1317 | . . 3 . 30 6 3 88 . 115 . . . . . 486 170 120 266 5 . . . . . 25 . . Successful Hack 432 | . 25 . 54 20 25 61 28 . 7 . . . . 27 28 . . . 24 . . . . 65 27 14 27 Select Force Hacks 240 | . . . . . . . 240 . . . . . . . . . . . . . . . . . . . . Disable Machine 690 | . 15 . 15 . 60 45 . . 15 . . . . 15 75 . 60 75 15 . . . . 30 165 75 30 Destroy Structure 951 | . 10 6 30 . 14 34 . . 9 . . . . 40 12 46 12 90 128 . . . . 32 86 249 153 Advance Influence 150 | . . . . . . . . . . . . . . 150 . . . . . . . . . . . . . Partial Spotted 15 | . . . . . . . . . . . . . . . . . . . . . . . . . . 15 . Lose Combat Pursuer 555 | . . . 30 15 45 . . . 30 . . . . 15 15 . . 30 75 15 15 . 30 15 30 120 75 Influence Decreases 12955 | 25 441 292 603 471 777 1146 476 34 541 537 70 . 119 443 721 719 670 664 537 411 321 131 210 256 684 938 718 Entered New Map 2535 | . . 27 . 158 51 190 33 34 . 130 . . . 33 57 305 215 . 149 163 67 131 . . . 224 568 Time Decay 8491 | 25 431 255 524 263 614 616 443 . 329 407 70 . 119 410 514 334 415 324 318 238 254 . 170 240 574 494 110 Lost Part 516 | . 10 10 . 10 . . . . 10 . . . . . 10 . . . 50 10 . . 40 16 90 220 40 Lost Ally 942 | . . . . 40 20 40 . . 202 . . . . . 140 80 40 340 20 . . . . . 20 . . Purge Threat 471 | . . . 79 . 92 300 . . . . . . . . . . . . . . . . . . . . . Squads Dispatched 90 | . 5 . . . 5 2 . . 12 . . . . 3 4 . . 7 10 . . . . 10 9 17 6 Investigation 17 | . . . . . . . . . 2 . . . . 2 2 . . . 2 . . . . 5 2 1 1 Extermination 15 | . . . . . . . . . 2 . . . . 1 . . . 1 2 . . . . . 5 3 1 Reinforcement 43 | . 5 . . . 4 . . . 3 . . . . . 1 . . 6 5 . . . . 5 1 9 4 Assault 7 | . . . . . . 2 . . . . . . . . 1 . . . 1 . . . . . 1 2 . Garrison 8 | . . . . . 1 . . . 5 . . . . . . . . . . . . . . . . 2 . Intercept . | . . . . . . . . . . . . . . . . . . . . . . . . . . . . Searches Triggered . | . . . . . . . . . . . . . . . . . . . . . . . . . . . . Construction Impeded 5 | . . . . . . . . . . . . . . . . . . . . . . . . . 1 3 1 Haulers Reinforced 5 | . . . . . . . . . . . . . . . . . . . . . . . . 3 . 2 . Active Scanning Responses . | . . . . . . . . . . . . . . . . . . . . . . . . . . . . Cargo Convoy Interrupts 1 | . . . . . . . . . . . . . . . . . . . . . . . . . . 1 . Stealth | -11 -10 -10 -9 -9 -8 -8 -8 -8 -6 -6 -6 -6 -5 -5 -5 -5 -5 -5 -4 -4 -4 -4 -3 -3 -3 -2 -1 --------- Run | Yrd Mat Min Mat Min Mat Sto Rec Scr Fac Low Low Zio Pro Fac Ext Cet Arc Hub Fac Upp Upp Zhi Pro Res Tes Res Acc Distress Signals 37 | . . . 3 . 4 5 . . 2 . . . . . 1 2 . 3 3 . . . . 4 . 8 2 Communications Jammed 31 | . . . . . . . . . . . . . . . . . . 4 26 . . . . . . 1 . Distress Signals 28 | . . . . . . . . . . . . . . . . . . 1 26 . . . . . . 1 . Times Spotted 554 | . 31 10 50 11 55 36 5 . 24 11 4 . 8 11 32 9 10 19 31 15 5 . 10 20 51 83 13 Peak Tracking Total 14 | . 5 3 6 3 5 8 1 . 4 4 3 . 3 4 5 5 1 5 9 10 4 . 5 5 5 14 10 Tactical Retreats 28 | . . . 2 1 3 . . . 2 . . . . 1 1 . . 2 2 1 1 . 2 1 2 5 2 Traps | -11 -10 -10 -9 -9 -8 -8 -8 -8 -6 -6 -6 -6 -5 -5 -5 -5 -5 -5 -4 -4 -4 -4 -3 -3 -3 -2 -1 ------- Run | Yrd Mat Min Mat Min Mat Sto Rec Scr Fac Low Low Zio Pro Fac Ext Cet Arc Hub Fac Upp Upp Zhi Pro Res Tes Res Acc Traps Triggered 18 | . 2 . . . 2 1 . . . . . . . . 4 . . . . . . . . 1 2 5 1 Indirectly 2 | . . . . . . . . . . . . . . . . . . . . . . . . . . 2 . Trap Hack Attempts . | . . . . . . . . . . . . . . . . . . . . . . . . . . . . Triggered . | . . . . . . . . . . . . . . . . . . . . . . . . . . . . Disarmed . | . . . . . . . . . . . . . . . . . . . . . . . . . . . . Reprogrammed . | . . . . . . . . . . . . . . . . . . . . . . . . . . . . Reused . | . . . . . . . . . . . . . . . . . . . . . . . . . . . . Traps Extracted . | . . . . . . . . . . . . . . . . . . . . . . . . . . . . Installed . | . . . . . . . . . . . . . . . . . . . . . . . . . . . . Triggered . | . . . . . . . . . . . . . . . . . . . . . . . . . . . . Machines | -11 -10 -10 -9 -9 -8 -8 -8 -8 -6 -6 -6 -6 -5 -5 -5 -5 -5 -5 -4 -4 -4 -4 -3 -3 -3 -2 -1 ---------- Run | Yrd Mat Min Mat Min Mat Sto Rec Scr Fac Low Low Zio Pro Fac Ext Cet Arc Hub Fac Upp Upp Zhi Pro Res Tes Res Acc Machines Disabled 48 | . 1 . 1 . 4 3 . . 1 . . . . 1 6 . 4 5 1 . . . . 2 12 5 2 Max in Single Turn 3 | . 1 . 1 . 1 1 . . 1 . . . . 1 1 . 1 3 1 . . . . 1 1 1 1 Garrison Access 2 | . . . . . 1 1 . . . . . . . . . . . . . . . . . . . . . Network Hub 1 | . . . . . . . . . . . . . . . . . . 1 . . . . . . . . . Machines Repaired . | . . . . . . . . . . . . . . . . . . . . . . . . . . . . Machines Dismantled 6 | . . . . . . 1 . . . . . . . . 4 . . 1 . . . . . . . . . Machines Sabotaged . | . . . . . . . . . . . . . . . . . . . . . . . . . . . . Overloaded Fab Kills . | . . . . . . . . . . . . . . . . . . . . . . . . . . . . Hacking | -11 -10 -10 -9 -9 -8 -8 -8 -8 -6 -6 -6 -6 -5 -5 -5 -5 -5 -5 -4 -4 -4 -4 -3 -3 -3 -2 -1 --------- Run | Yrd Mat Min Mat Min Mat Sto Rec Scr Fac Low Low Zio Pro Fac Ext Cet Arc Hub Fac Upp Upp Zhi Pro Res Tes Res Acc Machines Accessed 119 | . 6 1 12 1 13 19 14 4 5 2 . . . 4 13 . . . 4 . . 4 1 8 3 3 2 Terminals 72 | . 4 1 11 1 8 14 6 . 1 . . . . 2 11 . . . 1 . . . 1 5 3 2 1 Fabricators 3 | . . . . . . . . . 1 . . . . . . . . . 1 . . . . 1 . . . Repair Stations 8 | . 1 . . . 2 2 . . . . . . . 2 . . . . 1 . . . . . . . . Recycling Units 22 | . 1 . 1 . 2 2 8 . 2 . . . . . 2 . . . . . . . . 2 . 1 1 Scanalyzers . | . . . . . . . . . . . . . . . . . . . . . . . . . . . . Garrison Access 4 | . . . . . 1 1 . . 1 . . . . . . . . . 1 . . . . . . . . Total Hacks 338 | . 19 3 41 4 48 51 30 10 7 4 . . . 7 21 . . . 12 . . 17 1 33 12 11 7 Successful 171 | . 9 1 14 3 28 32 20 10 3 4 . . . 4 7 . . . 6 . . 17 1 9 1 1 1 Failed 167 | . 10 2 27 1 20 19 10 . 4 . . . . 3 14 . . . 6 . . . . 24 11 10 6 Catastrophic 36 | . 1 . 3 . 2 2 1 . 2 . . . . . 2 . . . 2 . . . . 10 4 5 2 Database Lockouts . | . . . . . . . . . . . . . . . . . . . . . . . . . . . . Manual 116 | . 4 1 14 4 12 15 20 . 6 . . 1 . 1 5 2 3 . 3 . . . . 11 7 6 1 Terminals 227 | . 12 3 37 4 30 40 20 . 2 . . . . 3 18 . . . 6 . . . 1 25 12 8 6 Fabricators 7 | . . . . . . . . . 1 . . . . . . . . . 1 . . . . 5 . . . Repair Stations 28 | . 4 . . . 10 6 . . . . . . . 4 . . . . 4 . . . . . . . . Recycling Units 40 | . 3 . 4 . 6 4 10 . 3 . . . . . 3 . . . . . . . . 3 . 3 1 Scanalyzers . | . . . . . . . . . . . . . . . . . . . . . . . . . . . . Garrison Access 5 | . . . . . 2 1 . . 1 . . . . . . . . . 1 . . . . . . . . Terminal Hacks 104 | . 4 1 12 3 10 18 5 10 1 4 . . . 2 5 . . . 4 . . 17 1 6 . . 1 Record 12 | . . . . . . . . 3 . 3 . . . . . . . . . . . 5 1 . . . . Part Schematic 6 | . . . . . . 1 . . . . . . . . . . . . . . . 4 . 1 . . . Robot Analysis 17 | . 1 . 2 2 . . 2 6 . . . . . . . . . . . . . 4 . . . . . Prototype ID Bank 17 | . 2 . 2 . 3 3 1 . . . . . . . 1 . . . . . . 4 . 1 . . . Open Door 11 | . . . . . . 4 . . . 1 . . . 1 4 . . . . . . . . . . . 1 Level Access Points 1 | . . . . 1 . . . . . . . . . . . . . . . . . . . . . . . Branch Access Points 4 | . . . 1 . . . . . 1 . . . . . . . . . 1 . . . . 1 . . . Emergency Access Points 1 | . . . . . . 1 . . . . . . . . . . . . . . . . . . . . . Terminal Index 1 | . 1 . . . . . . . . . . . . . . . . . . . . . . . . . . Repair Station Index 1 | . . . . . . . . . . . . . . 1 . . . . . . . . . . . . . Recycling Unit Index 2 | . . . . . 1 1 . . . . . . . . . . . . . . . . . . . . . Alert Level 1 | . . . . . . 1 . . . . . . . . . . . . . . . . . . . . . Unreport Threat 5 | . . . 2 . 1 2 . . . . . . . . . . . . . . . . . . . . . Locate Traps 6 | . . . 1 . 1 2 . . . . . . . . . . . . 1 . . . . 1 . . . Dispatch Records 1 | . . 1 . . . . . . . . . . . . . . . . . . . . . . . . . Hauler Manifests 6 | . . . 2 . 1 1 . . . . . . . . . . . . 1 . . . . 1 . . . Registered Components 5 | . . . 1 . 1 1 1 . . . . . . . . . . . 1 . . . . . . . . Registered Prototypes 2 | . . . 1 . . . . . . . . . . . . . . . . . . . . 1 . . . Zone Layout 4 | . . . . . 2 1 1 . . . . . . . . . . . . . . . . . . . . Proto ID Catalog 1 | . . . . . . . . 1 . . . . . . . . . . . . . . . . . . . Fabricator Hacks 1 | . . . . . . . . . . . . . . . . . . . . . . . . 1 . . . Load Schematic 1 | . . . . . . . . . . . . . . . . . . . . . . . . 1 . . . Repair Station Hacks 19 | . 4 . . . 9 4 . . . . . . . 1 . . . . 1 . . . . . . . . Scan Component 11 | . 2 . . . 5 2 . . . . . . . 1 . . . . 1 . . . . . . . . Repair 8 | . 2 . . . 4 2 . . . . . . . . . . . . . . . . . . . . . Recycling Unit Hacks 4 | . . . 1 . 1 1 1 . . . . . . . . . . . . . . . . . . . . Retrieve Components 4 | . . . 1 . 1 1 1 . . . . . . . . . . . . . . . . . . . . Scanalyzer . | . . . . . . . . . . . . . . . . . . . . . . . . . . . . Garrison Access Hacks 2 | . . . . . 1 1 . . . . . . . . . . . . . . . . . . . . . Seal Access 2 | . . . . . 1 1 . . . . . . . . . . . . . . . . . . . . . Unauthorized Hacks 41 | . 1 . 1 . 7 8 14 . 2 . . . . 1 2 . . . 1 . . . . 2 1 1 . Terminals 25 | . 1 . 1 . 7 7 6 . . . . . . . 1 . . . . . . . . . 1 1 . Botnet 9 | . 1 . 1 . 2 1 1 . . . . . . . 1 . . . . . . . . . 1 1 . Disrupt 1 | . . . . . . 1 . . . . . . . . . . . . . . . . . . . . . Operators 1 | . . . . . 1 . . . . . . . . . . . . . . . . . . . . . . Skim 14 | . . . . . 4 5 5 . . . . . . . . . . . . . . . . . . . . Fabricators . | . . . . . . . . . . . . . . . . . . . . . . . . . . . . Repair Stations 2 | . . . . . . . . . . . . . . 1 . . . . 1 . . . . . . . . Patch 2 | . . . . . . . . . . . . . . 1 . . . . 1 . . . . . . . . Recycling Units 14 | . . . . . . 1 8 . 2 . . . . . 1 . . . . . . . . 2 . . . Mask 1 | . . . . . . 1 . . . . . . . . . . . . . . . . . . . . . Tunnel 8 | . . . . . . . 8 . . . . . . . . . . . . . . . . . . . . Fedlink 5 | . . . . . . . . . 2 . . . . . 1 . . . . . . . . 2 . . . Scanalyzers . | . . . . . . . . . . . . . . . . . . . . . . . . . . . . Garrison Access . | . . . . . . . . . . . . . . . . . . . . . . . . . . . . Data Cores Recovered 3 | . . . 1 . . 1 . . . . . . . . . . . . 1 . . . . . . . . Used 1 | . . . . . . 1 . . . . . . . . . . . . . . . . . . . . . Hacking Detections 89 | . 5 1 12 1 12 15 6 . 4 . . . . 2 11 1 . . 4 . . . . 7 3 3 2 Full Trace Events 4 | . . . . . . . . . . . . . . 1 . . . . . . . . . 1 1 . 1 Feedback Events . | . . . . . . . . . . . . . . . . . . . . . . . . . . . . Feedback Blocked . | . . . . . . . . . . . . . . . . . . . . . . . . . . . . Robot Schematics Acquired 3 | . . . . . . . . . . . . . . . . . . . . . . . . . 3 . . Robots Built . | . . . . . . . . . . . . . . . . . . . . . . . . . . . . Authchips . | . . . . . . . . . . . . . . . . . . . . . . . . . . . . Time . | . . . . . . . . . . . . . . . . . . . . . . . . . . . . Total Robot Build Rating . | . . . . . . . . . . . . . . . . . . . . . . . . . . . . Part Schematics Acquired 12 | . . . . . . 1 . . . . . . . . . . . . . . . 4 . 1 6 . . Parts Built . | . . . . . . . . . . . . . . . . . . . . . . . . . . . . Authchips . | . . . . . . . . . . . . . . . . . . . . . . . . . . . . Time . | . . . . . . . . . . . . . . . . . . . . . . . . . . . . Total Part Build Rating . | . . . . . . . . . . . . . . . . . . . . . . . . . . . . Parts Repaired 8 | . 2 . . . 4 2 . . . . . . . . . . . . . . . . . . . . . Time 262 | . 52 . . . 134 76 . . . . . . . . . . . . . . . . . . . . . Parts Recycled . | . . . . . . . . . . . . . . . . . . . . . . . . . . . . Recycled Matter . | . . . . . . . . . . . . . . . . . . . . . . . . . . . . Retrieved Matter . | . . . . . . . . . . . . . . . . . . . . . . . . . . . . Retrieved Components 24 | . . . 7 . 9 8 . . . . . . . . . . . . . . . . . . . . . Parts Scanalyzed . | . . . . . . . . . . . . . . . . . . . . . . . . . . . . Part Schematics Acquired . | . . . . . . . . . . . . . . . . . . . . . . . . . . . . Parts Damaged . | . . . . . . . . . . . . . . . . . . . . . . . . . . . . Bothacking | -11 -10 -10 -9 -9 -8 -8 -8 -8 -6 -6 -6 -6 -5 -5 -5 -5 -5 -5 -4 -4 -4 -4 -3 -3 -3 -2 -1 ------------ Run | Yrd Mat Min Mat Min Mat Sto Rec Scr Fac Low Low Zio Pro Fac Ext Cet Arc Hub Fac Upp Upp Zhi Pro Res Tes Res Acc Used RIF Installer . | . . . . . . . . . . . . . . . . . . . . . . . . . . . . Robots Hacked . | . . . . . . . . . . . . . . . . . . . . . . . . . . . . Non-combat . | . . . . . . . . . . . . . . . . . . . . . . . . . . . . Combat . | . . . . . . . . . . . . . . . . . . . . . . . . . . . . Robot Hacks Applied . | . . . . . . . . . . . . . . . . . . . . . . . . . . . . Relay Couplers Released . | . . . . . . . . . . . . . . . . . . . . . . . . . . . . Fabnet Peak Effective % . | . . . . . . . . . . . . . . . . . . . . . . . . . . . . Robots Rewired 25 | . . . . . . . 9 . . . . . . . 14 . . . . . . . . . 2 . . Allies Hacked . | . . . . . . . . . . . . . . . . . . . . . . . . . . . . Hacks Repelled . | . . . . . . . . . . . . . . . . . . . . . . . . . . . . Allies | -11 -10 -10 -9 -9 -8 -8 -8 -8 -6 -6 -6 -6 -5 -5 -5 -5 -5 -5 -4 -4 -4 -4 -3 -3 -3 -2 -1 -------- Run | Yrd Mat Min Mat Min Mat Sto Rec Scr Fac Low Low Zio Pro Fac Ext Cet Arc Hub Fac Upp Upp Zhi Pro Res Tes Res Acc Total Allies 65 | . . 1 . 3 . 12 9 . . . . . . . 24 13 . 1 . . . . . . 2 . . Largest Group 25 | . . 1 . 3 1 10 19 19 18 . . . . . 17 25 23 20 1 . . . . . 1 . . Highest-Rated Group 1328 | . . 31 . 40 16 173 323 327 318 . . . . . 550 1328 1129 1019 50 . . . . . 150 . . Highest-Rated Ally 159 | . . 31 . 16 16 31 29 29 29 . . . . . 159 152 96 96 50 . . . . . 150 . . Total Orders 35 | . . . . . . . . 18 2 . . . . . . 12 3 . . . . . . . . . . STAY 16 | . . . . . . . . 4 1 . . . . . . 9 2 . . . . . . . . . . FOLLOW 13 | . . . . . . . . 9 . . . . . . . 3 1 . . . . . . . . . . DROP 1 | . . . . . . . . . 1 . . . . . . . . . . . . . . . . . . PICKUP 3 | . . . . . . . . 3 . . . . . . . . . . . . . . . . . . . COLLECT 2 | . . . . . . . . 2 . . . . . . . . . . . . . . . . . . . Ally Attacks 408 | . . 8 . 19 7 19 13 . 84 . . . . . 93 51 34 77 . . . . . . 3 . . Total Damage 9280 | . . 127 . 195 42 237 139 . 1097 . . . . . 1945 1588 939 2818 . . . . . . 153 . . Kills 60 | . . 1 . 6 . 1 2 . 11 . . . . . 12 6 5 14 . . . . . . 2 . . Allies Corrupted 9 | . . . . . . . . . 1 . . . . . . . . 7 . . . . . . 1 . . Allies Melted 2 | . . . . . 1 . . . . . . . . . 1 . . . . . . . . . . . . Intel | -11 -10 -10 -9 -9 -8 -8 -8 -8 -6 -6 -6 -6 -5 -5 -5 -5 -5 -5 -4 -4 -4 -4 -3 -3 -3 -2 -1 ------- Run | Yrd Mat Min Mat Min Mat Sto Rec Scr Fac Low Low Zio Pro Fac Ext Cet Arc Hub Fac Upp Upp Zhi Pro Res Tes Res Acc Active Infowar (turns) 22160 | 27 467 1043 962 592 . . . 2926 1000 2038 1205 3074 2289 778 489 . . 649 552 396 501 166 743 290 918 831 224 Sensors 1403 | . . . . . . . . . . . . . . . . . . . . . . . . . 419 760 224 Seismic 17320 | 27 467 1043 962 592 . . . . 996 2038 1205 3073 2269 778 489 . . 421 452 396 501 166 743 290 412 . . Jamming 3455 | . . . . . . . . 2926 6 . . 1 20 . . . . 228 100 . . . . . 103 71 . Robot Analysis Total 17 | . 1 . 2 2 . . 2 6 . . . . . . . . . . . . . 4 . . . . . Derelict Logs Recovered 9 | . . 1 . 1 . . . . . 2 . 2 2 . . . . . . 1 . . . . . . . Drone Launches . | . . . . . . . . . . . . . . . . . . . . . . . . . . . . Drone Recoveries . | . . . . . . . . . . . . . . . . . . . . . . . . . . . . Exploration | -11 -10 -10 -9 -9 -8 -8 -8 -8 -6 -6 -6 -6 -5 -5 -5 -5 -5 -5 -4 -4 -4 -4 -3 -3 -3 -2 -1 ------------- Run | Yrd Mat Min Mat Min Mat Sto Rec Scr Fac Low Low Zio Pro Fac Ext Cet Arc Hub Fac Upp Upp Zhi Pro Res Tes Res Acc Turns Passed 49432 | 234 1486 1930 3802 1656 3237 2046 1394 7015 1278 2264 1236 3086 2509 997 2400 740 4036 779 710 511 546 167 837 1247 1744 1313 232 Spaces Moved 19044 | 117 771 599 1073 493 1091 652 484 2758 482 944 513 1301 962 360 746 257 657 247 419 382 466 140 384 683 916 781 366 Core 449 | 3 . . . . . . . . . . . . . . . . 82 . . . . . . . . 1 363 Treads 14401 | 114 771 599 1073 493 1091 652 484 2758 482 944 513 1301 962 360 746 257 575 226 . . . . . . . . . Legs 4194 | . . . . . . . . . . . . . . . . . . 21 419 382 466 140 384 683 916 780 3 Wheels . | . . . . . . . . . . . . . . . . . . . . . . . . . . . . Hover . | . . . . . . . . . . . . . . . . . . . . . . . . . . . . Flight . | . . . . . . . . . . . . . . . . . . . . . . . . . . . . Fastest Speed 50 | 50 160 160 320 330 250 246 246 230 232 236 236 236 245 245 240 240 240 160 113 113 113 113 113 113 113 114 50 Average Speed 228 | 157 160 299 325 330 250 246 246 244 233 236 236 236 245 245 240 240 559 240 113 113 113 113 116 131 132 117 51 Slowest Speed 2800 | 160 240 320 330 330 570 250 246 312 236 236 236 245 245 245 245 240 2800 320 113 183 113 113 183 190 198 2100 300 Overloaded Moves . | . . . . . . . . . . . . . . . . . . . . . . . . . . . . Propulsion Burnouts . | . . . . . . . . . . . . . . . . . . . . . . . . . . . . Robots Hopped 1 | . . . . . . . . . . . . . . . . . . 1 . . . . . . . . . Potential Cave-ins 2 | . . . . . . . . . . . . . . 2 . . . . . . . . . . . . . Cave-ins Triggered . | . . . . . . . . . . . . . . . . . . . . . . . . . . . . Teleports 1 | . . . . . . . . . . . . . . . . . . . . . . . . . 1 . . Exploration Rate (%) 64 | 9 97 97 93 98 91 93 96 89 22 91 54 89 97 8 84 56 98 17 16 65 68 60 69 20 87 28 12 Regions Visited 27 Branch Regions 18 Pre-discovered Areas 17 | . . . . . . 1 8 . 1 2 . 1 . . . . . . . 1 . 3 . . . . . Known Exits Taken 11 | . . . 1 1 . 1 1 1 1 . . . . 1 . . . . 1 . . . . 1 1 1 . Unknown Exits Taken 16 | 1 1 1 . . 1 . . . . 1 1 1 1 . 1 1 1 1 . 1 1 1 1 . . . . Scrap Searched 27 | . . 2 . 4 . . . 6 . 4 3 1 1 . . . . . . 1 2 . 3 . . . . Spaces Dug 98 | . 4 6 . . 2 21 . . 1 . . . 1 13 . 2 . 3 8 3 18 . . 3 8 5 . Terrain Destroyed 634 | 4 10 6 26 . 6 35 . . 1 . . . 2 23 . 22 10 41 76 96 38 . 26 17 45 91 59 Melee . | . . . . . . . . . . . . . . . . . . . . . . . . . . . . Projectile 315 | . . . . . 6 . . . 1 . . . 2 23 . 14 10 41 62 18 3 . 26 17 34 58 . AOE 317 | 4 10 6 26 . . 35 . . . . . . . . . 8 . . 12 78 35 . . . 11 33 59 Terrain Rammed . | . . . . . . . . . . . . . . . . . . . . . . . . . . . . Walls Destroyed . | . . . . . . . . . . . . . . . . . . . . . . . . . . . . Machines Disabled . | . . . . . . . . . . . . . . . . . . . . . . . . . . . . Actions | -11 -10 -10 -9 -9 -8 -8 -8 -8 -6 -6 -6 -6 -5 -5 -5 -5 -5 -5 -4 -4 -4 -4 -3 -3 -3 -2 -1 --------- Run | Yrd Mat Min Mat Min Mat Sto Rec Scr Fac Low Low Zio Pro Fac Ext Cet Arc Hub Fac Upp Upp Zhi Pro Res Tes Res Acc Total 23406 | 140 929 665 1256 506 1453 1008 675 3025 597 967 534 1314 1054 432 1225 359 981 348 544 424 474 148 746 978 1218 999 407 Wait 1842 | . 64 8 22 . 191 216 78 225 14 2 9 . 21 9 77 16 290 2 10 . . . 340 190 30 18 10 Move 19014 | 116 770 598 1072 492 1090 651 483 2757 481 943 512 1300 961 359 745 256 656 244 418 381 465 139 383 682 915 780 365 Hop 1 | . . . . . . . . . . . . . . . . . . 1 . . . . . . . . . Pick Up 250 | 5 17 7 33 1 19 8 . 15 17 . 2 2 2 3 8 20 . 16 15 3 . 2 . 13 23 18 1 Fast Attach 97 | 7 8 . 1 . 8 7 . 2 1 1 . 4 . 1 1 3 9 4 3 4 . 2 3 14 10 3 1 Attach 101 | . 1 2 1 1 4 2 . 1 9 . . . 1 1 6 5 . 7 6 1 . . 3 10 10 22 8 Detach 40 | . 1 . . . 1 2 . . 3 1 . . . 1 2 . 1 2 . 1 . . 1 11 5 6 2 Swap 362 | . 7 12 26 4 16 18 1 6 19 5 3 1 16 16 26 13 4 22 24 15 5 2 7 11 50 33 . Drop 271 | . 8 3 37 1 19 21 1 19 13 2 2 6 1 4 7 23 5 16 9 5 . 3 . 16 30 9 11 Fire 900 | 12 43 27 46 5 94 68 6 . 39 13 6 . 33 38 56 23 16 30 58 14 4 . 9 31 112 108 9 Melee . | . . . . . . . . . . . . . . . . . . . . . . . . . . . . Ram . | . . . . . . . . . . . . . . . . . . . . . . . . . . . . Kick 5 | . . . . . . . . . . . . . . . . . . . 1 . . . . . 2 2 . Crush 80 | . 10 8 18 2 11 7 6 . 1 . . . 15 . 2 . . . . . . . . . . . . Escape Stasis 8 | . . . . . . . . . . . . . . . 8 . . . . . . . . . . . . Rewire 391 | . . . . . . . 100 . . . . 1 4 . 254 . . 1 . . . . . . 31 . . Trap . | . . . . . . . . . . . . . . . . . . . . . . . . . . . . Miscellaneous 44 | . . . . . . 8 . . . . . . . . 33 . . 3 . . . . . . . . . Route ------- -11/Scrapyard -10/Materials (discovered 4 exits: *Mat x3 / *Min) -10/Mines (discovered 2 exits: *Mat x2) -9/Materials (discovered 4 exits: *Mat x3 / *Min) -9/Mines (discovered 2 exits: *Mat x2) -8/Materials (discovered 4 exits: [*Fac x3] / *Sto) -8/Storage (discovered 2 exits: [*Fac] / *Rec) -8/Recycling (discovered 2 exits: *Fac / *Scr) -8/Scraptown (discovered 2 exits: *Fac x2) -6/Factory (discovered 3 exits: *Fac / *Low x2) -6/Lower Caves -6/Lower Caves (discovered 2 exits: *Fac / *Zio) -6/Zion -5/Proximity Caves -5/Factory (discovered 3 exits: Upp / *Ext x2) -5/Extension (discovered 2 exits: *Fac / *Cet) -5/Cetus (discovered 2 exits: *Fac / *Arc) -5/Archives (discovered 3 exits: *Fac / [*Hub x2]) -5/Hub_04(d) -4/Factory (discovered 4 exits: *Res x2 / *Upp x2) -4/Upper Caves -4/Upper Caves (discovered 2 exits: *Res / *Zhi) -4/Zhirov -3/Proximity Caves -3/Research (discovered 4 exits: *Res / Arm / *Tes x2) -3/Testing -2/Research -1/Access To Epsilon Eridani History --------- Turn | Location | Event 30 | -11/Scrapyard | Discovered new exit (range 15) 235 | -11/Scrapyard | Entered Materials 236 | -10/Materials | Met a group of wandering Federalists 315 | -10/Materials | Build established: Mutant 413 | -10/Materials | Discovered new exit (range 13) 473 | -10/Materials | Discovered new exit (range 8) 931 | -10/Materials | Discovered new exit (range 15) 1156 | -10/Materials | Discovered new exit (range 16) 1292 | -10/Materials | Repaired Lgt. Treads 1320 | -10/Materials | Repaired Lgt. Treads 1721 | -10/Materials | Entered Mines 1745 | -10/Mines | Met a Derelict bent on vengeance 1861 | -10/Mines | Core integrity fell below 50% 1939 | -10/Mines | Received a Mining Laser from a helpful Derelict 2400 | -10/Mines | Received a Rocket Launcher from a helpful Derelict 2452 | -10/Mines | Discovered new exit (range 5) 2714 | -10/Mines | Deemed a non-threat by the Exiles lab entrance 3145 | -10/Mines | Discovered new exit (range 6) 3651 | -10/Mines | Entered Materials 3651 | -9/Materials | Evolved 2 slots: Weapon x2 3999 | -9/Materials | Build established: Gunner 4897 | -9/Materials | Build established: Tank 5059 | -9/Materials | Discovered new exit (range 9) 5589 | -9/Materials | Discovered new exit (range 13) 6165 | -9/Materials | Discovered new exit (range 12) 6728 | -9/Materials | Identified exit to Mines 6896 | -9/Materials | Discovered new exit (range 13) 7453 | -9/Materials | Entered Mines 7477 | -9/Mines | Identified exit to Materials 7945 | -9/Mines | Learned Materials terminal intel 7988 | -9/Mines | Assisted by bots powering up and referring to "LRC-V3" 8311 | -9/Mines | Build established: Gunner 8747 | -9/Mines | A weapon hastily lodged in a ceiling crevice suddenly fell to the ground 8821 | -9/Mines | Joined a pair of Derelicts in attacking an 0b10 outpost 8994 | -9/Mines | Build established: Tank 9109 | -9/Mines | Entered Materials 9109 | -8/Materials | Accompanied by 1 ally 9109 | -8/Materials | Evolved 2 slots: Propulsion x1, Utility x1 9110 | -8/Materials | Loaded intel: 12 terminal locations 9656 | -8/Materials | Discovered new exit (range 9) 10086 | -8/Materials | Garrison activated, responded to threat 10161 | -8/Materials | Discovered new exit (range 13) 10391 | -8/Materials | Repaired Med. Armor Plating 10538 | -8/Materials | Repaired Arm. Treads 10565 | -8/Materials | Repaired Lgt. Armor Plating 10604 | -8/Materials | Repaired Arm. Treads 11294 | -8/Materials | Discovered new exit (range 11) 11889 | -8/Materials | Discovered new exit (range 15) 12346 | -8/Materials | Entered Storage 12347 | -8/Storage | Identified exit to Recycling 12361 | -8/Storage | Met a pair of Derelict thieves 12537 | -8/Storage | Destroyed 8 combat bots 12913 | -8/Storage | Repaired Arm. Treads 13234 | -8/Storage | Found Prototype Launcher 13234 | -8/Storage | Identified Gui. Missile Launcher 13669 | -8/Storage | Discovered new exit (range 16) 13819 | -8/Storage | Repaired Imp. Light Armor Plating 14164 | -8/Storage | Assisted by bots powering up and referring to "LRC-V3" 14267 | -8/Storage | Used back door to open Recycling access 14268 | -8/Storage | Learned Factory stockpile data 14301 | -8/Storage | Loaded intel: 7 trap records 14323 | -8/Storage | Learned Factory scanalyzer intel 14336 | -8/Storage | Learned location of 1 exit from Recycling 14345 | -8/Storage | Learned 4 Recycling zone layouts 14392 | -8/Storage | Entered Recycling 14392 | -8/Recycling | Accompanied by 10 allies 14393 | -8/Recycling | Identified exit to Scraptown 14394 | -8/Recycling | Identified exit to Factory 14450 | -8/Recycling | Build established: Commander-Tank 15545 | -8/Recycling | Learned 4 Recycling zone layouts 15571 | -8/Recycling | Loaded intel: 8 recycling unit locations 15585 | -8/Recycling | Learned Factory recycling unit intel 15587 | -8/Recycling | Learned Factory trap positions 15657 | -8/Recycling | Scanned before Scraplab entrance 15692 | -8/Recycling | Entered Scraplab 15786 | -8/Recycling | Entered Scraptown 15786 | -8/Scraptown | Accompanied by 19 allies 16520 | -8/Scraptown | Visited TADAMA 16899 | -8/Scraptown | Visited Symbiants 16938 | -8/Scraptown | Visited Spacefarers 16960 | -8/Scraptown | Visited Red Mages 16995 | -8/Scraptown | Visited UFD Registry 17029 | -8/Scraptown | Visited Awakened 17061 | -8/Scraptown | Visited CPS Storage 17103 | -8/Scraptown | Registered with UFD as "Gunninja" 17194 | -8/Scraptown | Visited DA-N13 Charitable Foundation 17216 | -8/Scraptown | Found DCF Scrap (31 items) 17268 | -8/Scraptown | Visited Supply Room 17307 | -8/Scraptown | Visited Observation Area 17344 | -8/Scraptown | Visited Science Guys 17411 | -8/Scraptown | Visited A0-MCA Data Center 17588 | -8/Scraptown | Given a B rating by A0-MCA 17593 | -8/Scraptown | Found A0-MCA's Component Scanner 17636 | -8/Scraptown | Visited Analyses Database 17717 | -8/Scraptown | Visited Botcube Research 17729 | -8/Scraptown | Found Botcube 17772 | -8/Scraptown | Visited Scrapoid Pod Storage 17846 | -8/Scraptown | Visited Curators Association 19466 | -8/Scraptown | Visited Cyclists 19483 | -8/Scraptown | Entered Cyclist Reading Room 20163 | -8/Scraptown | Build established: Commander-Gunner 22644 | -8/Scraptown | Met Optimus 22644 | -8/Scraptown | Accepted into 0bPrime 22801 | -8/Scraptown | Entered Factory 22801 | -6/Factory | Accompanied by 18 allies 22801 | -6/Factory | Evolved 4 slots: Propulsion x1, Utility x2, Weapon x1 22802 | -6/Factory | Loaded intel: 97 trap records 22804 | -6/Factory | Loaded intel: 8 recycling unit locations 22805 | -6/Factory | Loaded intel: 4 scanalyzer locations 22811 | -6/Factory | Found Scrapoid Pod 22900 | -6/Factory | Loaded intel: 8 recycling unit locations 23098 | -6/Factory | Build established: Commander-Tank 23180 | -6/Factory | Lost 8 allies 23259 | -6/Factory | Learned location of Protoforge (-2) 23615 | -6/Factory | Build established: Tank 23631 | -6/Factory | Discovered new exit (range 15) 23738 | -6/Factory | Identified exit to Lower Caves 23868 | -6/Factory | Garrison activated, responded to threat 23937 | -6/Factory | Garrison activated, responded to threat 24079 | -6/Factory | Entered Lower Caves 24080 | -6/Lower Caves | Encountered a Warlord checkpoint 24129 | -6/Lower Caves | Lost 3 allies 24450 | -6/Lower Caves | Build established: Gunner 26094 | -6/Lower Caves | Learned location of Zion (-6) 26123 | -6/Lower Caves | Discovered new exit (range 16) 26168 | -6/Lower Caves | Learned Factory emergency access door positions 26168 | -6/Lower Caves | Learned Research security intel 26343 | -6/Lower Caves | Entered another Lower Caves area 26376 | -6/Lower Caves | Discovered new exit (range 15) 26378 | -6/Lower Caves | Found DCF Scrap (14 items) 27480 | -6/Lower Caves | Discovered new exit (range 15) 27565 | -6/Lower Caves | Spotted B-75 Beast 27579 | -6/Lower Caves | Entered Zion 27785 | -6/Zion | Discovered new exit (range 15) 28219 | -6/Zion | Learned Factory non-interactive machine intel 28841 | -6/Zion | Turned away by Imprinter 28971 | -6/Zion | Given A8's code to call for help 29297 | -6/Zion | Received a hallucinogenic algorithm 29297 | -6/Zion | Ran a hallucination algorithm 30122 | -6/Zion | Found Prototype Device 30122 | -6/Zion | Identified Phasing AFG 30665 | -6/Zion | Entered Proximity Caves 30672 | -5/Proximity Caves | Learned 12 Factory zone layouts 30788 | -5/Proximity Caves | Spotter reported a threat 30844 | -5/Proximity Caves | Learned Factory garrison access intel 31018 | -5/Proximity Caves | Spotted B-75 Beast 31049 | -5/Proximity Caves | Destroyed B-75 Beast 32203 | -5/Proximity Caves | Attracted the attention of an 0b10 checkpoint 33125 | -5/Proximity Caves | Discovered new exit (range 15) 33174 | -5/Proximity Caves | Entered Factory 33174 | -5/Factory | Evolved 2 slots: Power x1, Utility x1 33175 | -5/Factory | Identified exit to Upper Caves 33175 | -5/Factory | Identified exit to Extension 33178 | -5/Factory | Loaded intel: 233 non-interactive machine locations 33179 | -5/Factory | Loaded intel: 4 garrison access locations 34153 | -5/Factory | Discovered exit to Extension (range 9) 34171 | -5/Factory | Entered Extension 34759 | -5/Extension | Rescued a captive Derelict 34761 | -5/Extension | Rescued a captive Derelict 34776 | -5/Extension | Build established: Tank 34782 | -5/Extension | Loaded intel: 2 recycling unit locations 34843 | -5/Extension | Rescued a captive Derelict 34844 | -5/Extension | Rescued a captive Derelict 34872 | -5/Extension | Rescued a captive Derelict 34904 | -5/Extension | Rescued A7 35181 | -5/Extension | Rescued a captive Derelict 35242 | -5/Extension | Rescued a captive Derelict 35360 | -5/Extension | Build established: Commander-Tank 35524 | -5/Extension | Spotted B-75 Beast 35532 | -5/Extension | Destroyed B-75 Beast 35546 | -5/Extension | Spotted B-75 Beast 35555 | -5/Extension | Destroyed B-75 Beast 35743 | -5/Extension | Rescued a captive Derelict 36096 | -5/Extension | Disrupted transfer network 36104 | -5/Extension | Lost 3 allies 36156 | -5/Extension | Build established: Commander-Gunner 36195 | -5/Extension | Rescued a captive Derelict 36468 | -5/Extension | Discovered new exit (range 10) 36470 | -5/Extension | Discovered new exit (range 6) 36471 | -5/Extension | Disrupted transfer network 36571 | -5/Extension | First assault squad dispatched 36571 | -5/Extension | Entered Cetus 36571 | -5/Cetus | Accompanied by 16 allies (A7) 36576 | -5/Cetus | Acquired a Cetus Manufacturing Module code from A7 36589 | -5/Cetus | Scrapoid Pod released 05C05-D (x5) 36613 | -5/Cetus | Spotted Cetus Guard 36613 | -5/Cetus | Spotted Cetus Guard 36615 | -5/Cetus | Spotted Cetus Guard 36620 | -5/Cetus | Spotted Cetus Guard 36625 | -5/Cetus | Destroyed Cetus Guard 36629 | -5/Cetus | Destroyed Cetus Guard 36630 | -5/Cetus | Destroyed Cetus Guard 36633 | -5/Cetus | Allies destroyed Cetus Guard 36658 | -5/Cetus | Lost 3 allies 36820 | -5/Cetus | Started Cetus Manufacturing Module 36823 | -5/Cetus | Enhanced Grunt warped into view, answering call for help 36831 | -5/Cetus | Enhanced Grunt warped into view, answering call for help 36845 | -5/Cetus | Manufactured an Enhanced Grunt 36849 | -5/Cetus | Discovered new exit (range 16) 36870 | -5/Cetus | Manufactured an Enhanced Grunt 36895 | -5/Cetus | Manufactured an Enhanced Grunt 36916 | -5/Cetus | Spotted Cetus Guard 36917 | -5/Cetus | Spotted Cetus Guard 36919 | -5/Cetus | Spotted Cetus Guard 36919 | -5/Cetus | Spotted Cetus Guard 36920 | -5/Cetus | Manufactured an Enhanced Grunt 36922 | -5/Cetus | Allies destroyed Cetus Guard 36928 | -5/Cetus | Destroyed Cetus Guard 36928 | -5/Cetus | Allies destroyed Cetus Guard 36931 | -5/Cetus | Allies destroyed Cetus Guard 36945 | -5/Cetus | Manufactured an Enhanced Grunt 36966 | -5/Cetus | Discovered new exit (range 16) 36985 | -5/Cetus | Met Revision 17 37044 | -5/Cetus | System corruption reached 10% 37085 | -5/Cetus | Botcube activated 37105 | -5/Cetus | Botcube completed mutation into treaded form, armed with 1 gun. 37221 | -5/Cetus | Murdered A7 37224 | -5/Cetus | Extracted ID and sensor layout for unrecognized location from A7's data core 37234 | -5/Cetus | Found Prototype Protection 37234 | -5/Cetus | Identified Med. Regenerative Plating 37243 | -5/Cetus | System corruption reached 30% 37311 | -5/Cetus | Entered Archives 37311 | -5/Archives | Accompanied by 23 allies 37362 | -5/Archives | Lost 3 allies 37423 | -5/Archives | Discovered new exit (range 16) 37586 | -5/Archives | Discovered new exit (range 15) 37883 | -5/Archives | Discovered new exit (range 15) 38116 | -5/Archives | Unable to access archive contents 38116 | -5/Archives | Ran a hallucination algorithm 38299 | -5/Archives | Unable to access archive contents 38299 | -5/Archives | Ran a hallucination algorithm 41347 | -5/Archives | Entered Hub_04(d) 41347 | -5/Hub_04(d) | Accompanied by 20 allies 41361 | -5/Hub_04(d) | Discovered new exit (range 14) 41589 | -5/Hub_04(d) | Network Hub disabled 41643 | -5/Hub_04(d) | Found Prototype Launcher 41643 | -5/Hub_04(d) | Identified Rocket Array 41706 | -5/Hub_04(d) | Build established: Scavenger-Gunner 41713 | -5/Hub_04(d) | Spotted Lightning 41720 | -5/Hub_04(d) | Spotted Lightning 41728 | -5/Hub_04(d) | Spotted Lightning 41733 | -5/Hub_04(d) | Destroyed Lightning 41748 | -5/Hub_04(d) | Destroyed Lightning 41752 | -5/Hub_04(d) | Destroyed Lightning 41763 | -5/Hub_04(d) | Lost 11 allies 41769 | -5/Hub_04(d) | Found Prototype Device 41770 | -5/Hub_04(d) | Identified Exp. EM Shield 41789 | -5/Hub_04(d) | Found Prototype Processor 41823 | -5/Hub_04(d) | Found Prototype Processor 42047 | -5/Hub_04(d) | Botcube activated 42059 | -5/Hub_04(d) | Build established: Scavenger-Tank 42063 | -5/Hub_04(d) | Botcube completed mutation into hovering form, armed with 1 gun. 42126 | -5/Hub_04(d) | Entered Factory 42126 | -4/Factory | Accompanied by 1 ally 42126 | -4/Factory | Evolved 2 slots: Propulsion x2 42243 | -4/Factory | Discovered new exit (range 14) 42267 | -4/Factory | Discovered new exit (range 15) 42345 | -4/Factory | Noticed UFD Elites at a Recycling Unit 42367 | -4/Factory | Build established: Scavenger-Gunner 42381 | -4/Factory | Identified exit to Upper Caves 42401 | -4/Factory | Lost 3 allies 42626 | -4/Factory | First assault squad dispatched 42807 | -4/Factory | Spotted B-86 Titan 42836 | -4/Factory | Entered Upper Caves 42885 | -4/Upper Caves | Destroyed 10 combat bots 42932 | -4/Upper Caves | Found Imp. Powered Armor 43129 | -4/Upper Caves | Spotted B-86 Titan 43341 | -4/Upper Caves | Discovered new exit (range 6) 43347 | -4/Upper Caves | Entered another Upper Caves area 43400 | -4/Upper Caves | Discovered new exit (range 7) 43475 | -4/Upper Caves | Encountered a Warlord checkpoint 43497 | -4/Upper Caves | Spotted B-86 Titan 43887 | -4/Upper Caves | Discovered new exit (range 5) 43893 | -4/Upper Caves | Entered Zhirov 43893 | -4/Zhirov | Discovered new exit (range 3) 43914 | -4/Zhirov | Met Zhirov 43939 | -4/Zhirov | Learned location of Command (-1) 43945 | -4/Zhirov | Zhirov requested help retrieving the SGEMP Prototype 43965 | -4/Zhirov | Found Alien Artifact 43965 | -4/Zhirov | Identified Integrated Dissipator 43965 | -4/Zhirov | Installed Integrated Dissipator, increased core heat dissipation (+20) 43982 | -4/Zhirov | Found Alien Artifact 44060 | -4/Zhirov | Entered Proximity Caves 44161 | -3/Proximity Caves | Lost 3 parts (1p2n) 44253 | -3/Proximity Caves | Spotted B-86 Titan 44531 | -3/Proximity Caves | Discovered new exit (range 7) 44685 | -3/Proximity Caves | Received a Behemoth hack from an annoying Tinkerer 44897 | -3/Proximity Caves | Entered Research 44897 | -3/Research | Evolved 2 slots: Propulsion x1, Utility x1 44900 | -3/Research | Identified Exp. Targeting Computer 45065 | -3/Research | Identified exit to Armory 45065 | -3/Research | Identified exit to Testing 45097 | -3/Research | Revision forces began assault on 0b10 45138 | -3/Research | Met up with Revision 17++ 45194 | -3/Research | Spotted B-86 Titan 45210 | -3/Research | Destroyed B-86 Titan 45417 | -3/Research | Found Prototype Processor 45517 | -3/Research | Loaded intel: 5 recycling unit locations 45597 | -3/Research | Research terminal network offline 45762 | -3/Research | Lost 4 allies 45847 | -3/Research | Discovered new exit (range 5) 46144 | -3/Research | Entered Testing 46339 | -3/Testing | Rewired PG-4N0P60T30C 46388 | -3/Testing | Found Prototype Device 46389 | -3/Testing | Identified AEGIS Remote Shield 46433 | -3/Testing | Found Prototype Device 46435 | -3/Testing | Identified Exp. EM Disruption Field 46506 | -3/Testing | System corruption reached 10% 46540 | -3/Testing | Found Prototype Launcher 46540 | -3/Testing | Identified Com. Tesla Bomb Launcher 46547 | -3/Testing | Found Com. Tesla Bomb Launcher 47066 | -3/Testing | Found Prototype Ballistic Cannon 47066 | -3/Testing | Identified Omega Cannon 47245 | -3/Testing | Found Prototype Device 47245 | -3/Testing | Identified Exp. Hardlight Generator 47429 | -3/Testing | Found Prototype Protection 47669 | -3/Testing | Rewired PH-6M3FDHW814 47674 | -3/Testing | Protovariant out of control (PH-6M3FDHW814) 47675 | -3/Testing | Spotted PH-6M3FDHW814 47676 | -3/Testing | Identified Transdimensional Reconstructor 47676 | -3/Testing | Warped through subspace 47753 | -3/Testing | System corruption reached 30% 47779 | -3/Testing | Lost 5 parts (3n2w) 47825 | -3/Testing | Discovered new exit (range 5) 47837 | -3/Testing | Spotted Investigator 47838 | -3/Testing | Scanned by Researcher 47848 | -3/Testing | Destroyed Investigator 47875 | -3/Testing | Identified exit to Research 47888 | -3/Testing | Entered Research 47888 | -2/Research | Evolved 2 slots: Utility x2 47891 | -2/Research | Identified SHELL Armor 48974 | -2/Research | System corruption reached 10% 49021 | -2/Research | Lost 8 parts (1n3u4w) 49029 | -2/Research | Destroyed 16 combat bots 49070 | -2/Research | Garrison activated, responded to threat 49071 | -2/Research | Cargo convoy interrupted 49073 | -2/Research | Spotted Striker 49083 | -2/Research | Destroyed Striker 49113 | -2/Research | Destroyed 15 combat bots 49138 | -2/Research | First assault squad dispatched 49153 | -2/Research | Found Fusion Bomb Launcher 49184 | -2/Research | Discovered new exit (range 9) 49195 | -2/Research | System corruption reached 30% 49199 | -2/Research | Identified exit to Access 49201 | -2/Research | Entered Access 49201 | -1/Access | Evolved 2 slots: Utility x2 49231 | -1/Access | Lost 6 parts (1p2n3w) 49401 | -1/Access | Discovered new exit (range 6) 49403 | -1/Access | Identified exit to Surface 49433 | *** | Escaped! Last Messages --------------- Access Zone 3Y. 49412_ ALERT: Hostiles spotted, dispatching reinforcements to Terminal A011. 49417_ System corrupted: Substantial component data lost. 49417_ Terminal disabled. 49417_ H-81 Overseer calls for reinforcements. 49417_ ALERT: Hostile activity reported, dispatching reinforcements to area. 49420_ The unstable cave ceiling collapses. 49421_ Fusion Bomb Launcher destroyed. 49421_ Knocked back. 49428_ Adv. Sensor Array destroyed. 49428_ Knocked back. 49430_ Sealed Heavy Doors breached. 49431_ Acquired 15 matter. 49431_ Penetrated by Slug. 49431_ Biometal Leg destroyed. 49431_ Slug penetrates Wall. 49433_ Hds. Centrium Leg destroyed. 49433_ Knocked back. Map ----- +----------------------------------------------------+ | #??# ???????????????????? | | ######## ????????????????????? | | ?# ##############????????????????????? | | ]?# #?????????????????????????????????? | | ??# #?????????????????????????????????? | | ??# #?????????????????????????????????? | | ???# #?????????????????????????????????? | | ???# #?????????????????????????????????? | | ????# #?????????????????????????????????? | | ????# #???????? ?????????????????????? | | #+###### ######### # ########???????????? | | ???????????? | | h ????????????? | | #+#############+##### H ????????????????? | | ??????????? ???# ????????????????? | | ??????????? ???# ???????????????? | | " ????????? ??# ????????????????? | | """????????? ??# ?????????????????? | | """ ???????" #?# #?????????????????? | | " ??????? ### ""##????????????????? | | ????? ! ## #????????????????? | | ????? ### ##????????????????? | | #?#?###???#########?# #?????????????????? | | ????????????????????# #?????????????????? | | ????????????????????# #?????????????????? | | ????????????????????# @" #?????????????????? | | ????????????????????# "" #?????????????????? | | ????????????????????# % #?????????????????? | | ????????????????????# #?????????????????? | | ????????????????????# % % #?????????????????? | | ????????????????????#"""" """""#?????????????????? | | ????????????????????????"""??????????????????????? | | ?????????????????????????????????????????????????? | | ?????????????????????????????????????????????????? | | ?????????????????????????????????????????????????? | | ?????????????????????????????????????????????????? | | ?????????????????????????????????????????????????? | | ?????????????????????????????????????????????????? | | ?????????????????????????????????????????????????? | | ?????????????????????????????????????????????????? | | ?????????????????????????????????????????????????? | | ?????????????????????????????????????????????????? | | ?????????????????????????????????????????????????? | | ?????????????????????????????????????????????????? | | ?????????????????????????????????????????????????? | | ?????????????????????????????????????????????????? | | ?????????????????????????????????????????????????? | | ?????????????????????????????????????????????????? | | ?????????????????????????????????????????????????? | | ?????????????????????????????????????????????????? | +----------------------------------------------------+ Best States ------------- Heat Dissipation 110 Coolant Potential 120 Energy Generation 43 Energy Capacity 600 Matter Stores 300 Matter Capacity 700 Sight Range 16 Robot Scan Range 16 Terrain Scan Density 10 Jamming Range 16 Armor Coverage 900 Resistance: EM 75 Point Defense Rating 240 Weapon Cycling 20 Evasion (%) 67 Targeting Accuracy 12 Core Analysis 6 Recoil Reduction 4 Matter Filtering 50 Salvage Targeting 4 Offensive Hacking 14 Item Schematics ----------------- Arm. Huge Wheel | -8/Storage | Hacked Assault Drone Bay | -4/Zhirov | Free Exp. Heat Sink | -4/Zhirov | Free Exp. Optical Array | -4/Zhirov | Free Imp. Arc Thrower | -4/Zhirov | Free Hvy. Armored Exoskeleton | -3/Research | Hacked Adv. Energy Well | -3/Testing | Archive Centrium Heavy Armor Plating | -3/Testing | Archive Cld. Fission Core | -3/Testing | Archive Centrium Medium Armor Plating | -3/Testing | Archive Exp. Field Recycling Unit | -3/Testing | Archive Exp. Hacking Suite | -3/Testing | Archive Robot Schematics ------------------ A-27 Freighter | -3/Testing | Archive R-06 Scavenger | -3/Testing | Archive M-30 Cleanser | -3/Testing | Archive Fabricated ------------ Nothing Repaired ---------- Lgt. Treads | 25% | -10/Materials Lgt. Treads | 37% | -10/Materials Med. Armor Plating | 18% | -8/Materials Arm. Treads | 37% | -8/Materials Lgt. Armor Plating | 24% | -8/Materials Arm. Treads | 42% | -8/Materials Arm. Treads | 19% | -8/Storage Imp. Light Armor Plating | 41% | -8/Storage Alien Tech Used ----------------- Integrated Dissipator Transdimensional Reconstructor Achievements -------------- None Challenges ------------ None Game ------ Seed TimingHardenedTurbovents Manual? 0 Play Time 04:43:32 Cumulative 548.6 hours Start 2025.07.20 @ 19:47:49 End 2025.07.21 @ 16:45:30 Sessions 5 Manual Loads 0 Difficulty Rogue Special Mode None Game No. 240 Rogue 240 Adventurer 0 Explorer 0 Win Type 0 Total 26 Types 8/4/7/2/1/0/1/1/1/1 Lore% 91 Gallery% 87 Achievement% 81 Wizard Run 0 Options --------- Layout 0 ASCII 0 Keyboard 0 Movement Arrows Keybinds 0 Fullscreen 2 Font 18/SmallcapsGlow Map View 76x50 Zoom Use 0% Tactical HUD 1 Map Filters NONE Filters NONE Steam 1 RUN: d903a3b7-9046-44c4-93a7-8762ff7875db